Cogmind - Beta 13 @@@ ROGUE MODE // 2024.02.26 @ 06:39:03 // Winter2019/RPGLIKE Player: H3-RMN Result: Destroyed self with Improved Grenade Launcher Performance ------------- Evolutions (3) 1500 Regions Visited (5) 1000 Robots Destroyed (90) 450 Value Destroyed (2943) 2943 Prototype IDs (7) 140 Alien Tech Used (0) 0 Bonus (-44) -44 TOTAL SCORE: 5989 Bonus ------- High Alert Combat Kills 44 Friendly Fire -88 Cogmind --------- Core Integrity 0/1200 Matter 116/300 Energy 68/180 System Corruption 16% Temperature Cool (0) Movement Rolling (245) Ox11 Location -7/Waste Parts ------- > --- POWER (2) -------- Meta Core > --- PROPULSION (3+1) - Wheel (+) Wheel > --- UTILITY (7+1) ---- Improved Cooling System Humpback Improved Terrain Scanner Improved Targeting Computer (+) Improved Shield Generator Long-range Tractor Beam > --- WEAPON (3+1) ----- Light Cannon (+) Assault Cannon Improved Grenade Launcher Improved Grenade Launcher > --- INVENTORY (33) --- Cooled Ion Engine Heavy Deuterium Engine Heavy Deuterium Engine Advanced Treads Advanced Treads Advanced Treads Medium Treads Medium Treads Medium Treads Medium Treads Wheel Armored Wheel Cryofiber Web Improved Heat Sink Coolant Injector Large Battery (200) High-capacity Matter Pod (50) Improved Signal Interpreter Hardened Heavy Armor Plating Improved Medium Armor Plating Hardlight Generator System Shield Improved Medium Laser Heavy Laser Faulty Enhanced Autogun Enhanced Autogun Faulty Enhanced Autogun Enhanced Autogun Shock Bomb Launcher Improved Grenade Launcher Multitool Impact Mace Peak State ------------ > --- POWER ------------ Heavy Deuterium Engine Meta Core > --- PROPULSION ------- Medium Treads Wheel Wheel Armored Wheel > --- UTILITY ---------- Improved Cooling System Humpback Improved Terrain Scanner Improved Targeting Computer Reflective Plating Improved Shield Generator Tractor Beam > --- WEAPON ----------- Heavy Laser Light Cannon Assault Cannon Shock Bomb Launcher > --- INVENTORY -------- Improved Ion Engine Cooled Ion Engine Heavy Deuterium Engine Heavy Deuterium Engine Advanced Treads Advanced Treads Advanced Treads Medium Treads Medium Treads Medium Treads Wheel Wheel Wheel Improved Heat Sink Coolant Injector Large Battery High-capacity Matter Pod Weight Redist. System Improved Signal Interpreter Weapon Shielding Medium Armor Plating Medium Armor Plating Hardlight Generator Improved Medium Laser Enhanced Autogun Enhanced Autogun Enhanced Autogun Enhanced Autogun Improved Grenade Launcher Improved Grenade Launcher Improved Grenade Launcher Multitool Impact Mace [Rating: 65] Favorites ----------- Power Meta Core Engine Heavy Deuterium Engine Power Core Meta Core Propulsion Improved Treads Treads Improved Treads Wheel Wheel Utility Improved Terrain Scanner Device Improved Terrain Scanner Storage Humpback Processor Improved Targeting Computer Protection Scrap Shield Weapon Light Cannon Energy Gun EM Shotgun Ballistic Gun Barrage Gun Ballistic Cannon Light Cannon Launcher Grenade Launcher Slashing Weapon Ripper Build | -11 -10 -10 -8 -7 -7 ------- Run | Yrd Mat Sub Mat Fac Was Slots Evolved 11 | 3 2 . 4 2 . Power 1 | . . . 1 . . Propulsion 2 | 1 . . 1 . . Utility 6 | 1 2 . 2 1 . Weapon 2 | 1 . . . 1 . Parts Attached 57 | 6 9 12 21 7 2 Power 6 | 1 2 1 2 . . Engine 4 | 1 1 . 2 . . Core 2 | . 1 1 . . . Reactor . | . . . . . . Propulsion 17 | 2 2 1 8 4 . Treads 10 | 2 2 . 6 . . Leg . | . . . . . . Wheel 7 | . . 1 2 4 . Hover . | . . . . . . Flight . | . . . . . . Utility 19 | 1 3 5 8 2 . Device 8 | 1 2 . 3 2 . Storage 2 | . . 1 1 . . Processor 1 | . . 1 . . . Hackware . | . . . . . . Protection 8 | . 1 3 4 . . Artifact . | . . . . . . Weapon 15 | 2 2 5 3 1 2 Energy Gun 5 | 2 1 1 . 1 . Energy Cannon . | . . . . . . Ballistic Gun 1 | . . 1 . . . Ballistic Cannon 3 | . 1 1 1 . . Launcher 4 | . . 1 1 . 2 Special Weapon . | . . . . . . Impact Weapon . | . . . . . . Slashing Weapon 2 | . . 1 1 . . Piercing Weapon . | . . . . . . Special Melee Weapon . | . . . . . . Unidentified Prototypes 2 | . . 1 1 . . Corrupted Parts 2 | 1 . . . 1 . System Corruption 9 | 1 . . . 8 . Parts Lost 2 | . . . . . 2 Power 1 | . . . . . 1 Propulsion 1 | . . . . . 1 Utility . | . . . . . . Weapon . | . . . . . . Highest Loss Streak 2 | . . . . . 2 To Critical Strikes . | . . . . . . Average Slot Usage (%) 90 | . 97 85 92 93 86 Engine 4 | . 12 1 5 5 3 Core 5 | . . 6 6 5 5 Treads 16 | . 25 16 16 3 . Wheel 4 | . . . 7 18 18 Device 20 | . 28 18 19 21 22 Storage 1 | . . . 4 5 5 Processor 5 | . . 6 6 5 5 Protection 6 | . 5 8 4 5 3 Energy Gun 4 | . 13 3 . 4 . Ballistic Gun 1 | . . 4 . . . Ballistic Cannon 10 | . 11 8 11 11 11 Launcher 5 | . . 6 6 5 11 Naked Turns . | . . . . . . Heaviest Build 249 | 7 17 217 241 247 249 Greatest Support 84 | 40 46 46 84 42 42 Greatest Overweight (x) 24 | . . 4 24 8 5 Average Overweight (x) 1 | . . . 5 6 5 Largest Inventory Capacity 33 | 2 2 32 33 33 33 Average Capacity 11 | 1 2 2 24 33 33 Most Carried 33 | . 2 3 31 33 33 Average Carried 7 | . 1 2 13 32 33 Final Capacity 33 | 2 2 3 33 33 33 Final Carried 33 | . 2 3 31 33 33 Class Distribution -------------------- 33% | Gunner 30% | Mutant 30% | Hauler-Gunner Dominant Class ---------------- Mutant | -10/Materials Gunner | -10/Subcaves Hauler-Gunner | -8/Materials Hauler-Gunner | -7/Factory Hauler-Gunner | -7/Waste Resources | -11 -10 -10 -8 -7 -7 ----------- Run | Yrd Mat Sub Mat Fac Was Matter Collected 2452 | 205 281 755 1079 132 . Remotely 2090 | . 188 741 1079 82 . Salvage Created 2787 | 43 856 678 1152 58 . Parts 166 | 6 41 56 59 4 . Haulers Intercepted 4 | . 2 . 2 . . Recyclers Shooed . | . . . . . . Parts Field Recycled . | . . . . . . Retrieved Matter . | . . . . . . Parts Self-Destructed 17 | . . 17 . . . Prevented 4 | . . 4 . . . Kills | -11 -10 -10 -8 -7 -7 ------- Run | Yrd Mat Sub Mat Fac Was Combat Hostiles Destroyed 74 | . 15 25 31 2 1 Melee 4 | . . . 4 . . Guns 16 | . 10 5 . 1 . Cannons 26 | . 4 2 19 1 . AOE 27 | . 1 18 7 . 1 Classes Destroyed 14 | 1 6 2 4 . 1 Worker 5 | . 1 . 4 . . Builder 3 | . . . 3 . . Tunneler 3 | 2 . . 1 . . Hauler 4 | . 2 . 2 . . Recycler 2 | . 2 . . . . Operator 1 | . . . 1 . . Watcher 1 | . 1 . . . . Swarmer 6 | . 3 3 . . . Grunt 40 | . 12 2 24 2 . Brawler 1 | . . . 1 . . Sentry 6 | . . 1 5 . . Hunter 1 | . . . 1 . . Compactor 1 | . . . . . 1 Subdweller 19 | . . 19 . . . Best Kill Streak 7 | 2 5 5 7 2 1 Combat Bots Only 5 | . 5 5 5 2 1 Max Kills in Single Turn 3 | 1 2 3 3 1 1 Gunslinging . | . . . . . . Exploded 3 | . 1 3 2 . 1 Melee 1 | . . . 1 . . Uniques/NPCs Destroyed . | . . . . . . Combat | -11 -10 -10 -8 -7 -7 -------- Run | Yrd Mat Sub Mat Fac Was Hostile Shots Fired 359 | . 52 78 223 4 2 Missed 86 | . 9 20 56 1 . Damage Taken 3831 | . 485 1184 1823 31 308 Core 2713 | . 398 844 1233 19 219 Absorbed by Shields 816 | . . . 689 12 115 Redirected to Core 2201 | . 260 618 1088 19 216 Redirected to Shielding 88 | . . . 88 . . Ignored by Resistances 26 | . . . 20 6 . Regen/Repaired (Parts) 21 | . . . 21 . . Core Remaining (%) 43 | 100 . 22 9 . . Volleys Fired 247 | 3 35 98 100 6 5 Largest 3 | 2 2 2 3 3 2 Hottest 148 | 80 80 80 115 148 72 Shots Fired 398 | 6 69 126 171 17 9 Gun 73 | 6 35 27 . 5 . Cannon 265 | . 34 69 150 12 . Launcher 60 | . . 30 21 . 9 Special . | . . . . . . Kinetic 271 | . 34 75 150 12 . Thermal 8 | 3 . . . 5 . Explosive 48 | . . 30 9 . 9 Electromagnetic 71 | 3 35 21 12 . . Robot Hit Streak 30 | 3 11 30 26 7 8 Robot Miss Streak 5 | 2 5 4 4 4 1 Penetration Max . | . . . . . . Secondary Targets . | . . . . . . Shots Hit Robots 267 | 3 38 67 142 9 8 Core Hits 156 | 2 27 49 68 5 5 Critical Kills . | . . . . . . Critical Parts Destroyed . | . . . . . . Critical Strikes 11 | 1 1 . 8 1 . Blast 8 | . . . 7 1 . Corrupt 2 | 1 1 . . . . Sever 1 | . . . 1 . . Melee Attacks 27 | . . . 27 . . Impact . | . . . . . . Slashing 27 | . . . 27 . . Piercing . | . . . . . . Sneak Attacks . | . . . . . . Combat Hostiles . | . . . . . . Follow-up Attacks . | . . . . . . Damage Inflicted 8555 | 48 688 2445 4172 204 998 Guns 789 | 48 323 362 . 56 . Cannons 2792 | . 265 271 2108 148 . Explosions 4219 | . 100 1812 1309 . 998 Melee 755 | . . . 755 . . Ramming . | . . . . . . Kinetic 2877 | . 265 356 2108 148 . Thermal 209 | 23 100 30 . 56 . Explosive 3433 | . . 1782 653 . 998 Electromagnetic 1281 | 25 323 277 656 . . Impact . | . . . . . . Slashing 755 | . . . 755 . . Piercing . | . . . . . . Highest Corruption 16 | 1 1 1 . 8 16 Average Corruption 1 | 1 1 1 . 8 11 Corruption Purged . | . . . . . . Corruption Blocked . | . . . . . . Effects 38 | . 14 22 . 1 1 Message Errors 10 | . 4 5 . 1 . Matter Fused 6 | . 2 3 . . 1 Heat Flow Errors 3 | . 1 2 . . . Energy Discharges 5 | . 2 3 . . . Data Loss (minor) 9 | . 3 6 . . . Data Loss (major) 1 | . . 1 . . . Misfires 2 | . 1 1 . . . Alerts 1 | . . 1 . . . Weapon Failures 1 | . 1 . . . . Overload Shots . | . . . . . . Overflow Damage 58 | . 6 . 52 . . Projectiles 16 | . . . 16 . . Explosions 22 | . 6 . 16 . . Melee 20 | . . . 20 . . Knockbacks 29 | . 6 5 15 3 . Impact . | . . . . . . Kinetic 28 | . 5 5 15 3 . Secondary 1 | . 1 . . . . Self-Inflicted Damage 411 | . . 53 44 . 314 Shots 18 | . . 4 6 . 8 Rammed 1 | . 1 . . . . Targets Rammed 1 | . 1 . . . . Kicked . | . . . . . . Crushed . | . . . . . . Highest Temperature 395 | 54 210 248 395 42 . Average Temperature 78 | 29 64 105 86 20 . Received Heat Transfer 1369 | . 225 369 757 18 . Effects 5 | . 2 1 2 . . Shutdowns 2 | . . . 2 . . Energy Bleed 1 | . . 1 . . . Interference 2 | . 2 . . . . Siege Activations . | . . . . . . Robots Corrupted 1 | . . . 1 . . Combat Hostiles 1 | . . . 1 . . Parts Fried 4 | . . . 4 . . Impact Corruptions . | . . . . . . Robots Melted . | . . . . . . Combat Hostiles . | . . . . . . Parts Melted . | . . . . . . Heat Transferred 361 | 50 150 50 . 111 . Parts Sabotaged . | . . . . . . Parts Stolen . | . . . . . . Parts Stripped . | . . . . . . Power Chain Reactions 3 | . 1 1 1 . . Alert | -11 -10 -10 -8 -7 -7 ------- Run | Yrd Mat Sub Mat Fac Was Peak Influence 461 | 10 314 . 461 256 48 Initial 200 | . 6 . 4 200 21 Average 199 | 1 181 . 229 162 26 Maximum Alert Level 2 | . 1 . 2 1 . Low Security (%) 53 | 100 64 . 49 36 100 Level 1 38 | . 35 . 33 63 . Level 2 8 | . . . 16 . . Level 3 . | . . . . . . Level 4 . | . . . . . . Level 5 . | . . . . . . High Security . | . . . . . . Max Security . | . . . . . . Squads Dispatched 9 | . 3 . 6 . . Investigation 6 | . 2 . 4 . . Extermination . | . . . . . . Reinforcement 3 | . 1 . 2 . . Assault . | . . . . . . Garrison . | . . . . . . Intercept . | . . . . . . Searches Triggered . | . . . . . . Construction Impeded 1 | . . . 1 . . Haulers Reinforced . | . . . . . . Active Scanning Responses . | . . . . . . Cargo Convoy Interrupts . | . . . . . . Stealth | -11 -10 -10 -8 -7 -7 --------- Run | Yrd Mat Sub Mat Fac Was Distress Signals 8 | . 2 . 6 . . Communications Jammed . | . . . . . . Distress Signals . | . . . . . . Times Spotted 98 | . 23 25 44 4 2 Peak Tracking Total 7 | . 6 3 7 2 2 Tactical Retreats 2 | . . . 2 . . Traps | -11 -10 -10 -8 -7 -7 ------- Run | Yrd Mat Sub Mat Fac Was Traps Triggered 3 | . 1 . 1 1 . Indirectly . | . . . . . . Trap Hack Attempts . | . . . . . . Triggered . | . . . . . . Disarmed . | . . . . . . Reprogrammed . | . . . . . . Reused . | . . . . . . Traps Extracted . | . . . . . . Installed 1 | . . 1 . . . Triggered . | . . . . . . Machines | -11 -10 -10 -8 -7 -7 ---------- Run | Yrd Mat Sub Mat Fac Was Machines Disabled 3 | . 1 . 2 . . Max in Single Turn 1 | . 1 . 1 . . Machines Repaired . | . . . . . . Machines Dismantled . | . . . . . . Machines Sabotaged . | . . . . . . Overloaded Fab Kills . | . . . . . . Hacking | -11 -10 -10 -8 -7 -7 --------- Run | Yrd Mat Sub Mat Fac Was Machines Accessed 15 | . 8 1 6 . . Terminals 12 | . 8 . 4 . . Fabricators . | . . . . . . Repair Stations 1 | . . . 1 . . Recycling Units . | . . . . . . Scanalyzers 1 | . . . 1 . . Garrison Access . | . . . . . . Total Hacks 45 | . 26 1 18 . . Successful 20 | . 12 1 7 . . Failed 25 | . 14 . 11 . . Catastrophic 3 | . 2 . 1 . . Database Lockouts . | . . . . . . Manual 12 | . 5 . 7 . . Terminals 37 | . 26 . 11 . . Fabricators . | . . . . . . Repair Stations 3 | . . . 3 . . Recycling Units . | . . . . . . Scanalyzers 4 | . . . 4 . . Garrison Access . | . . . . . . Terminal Hacks 14 | . 10 1 3 . . Record 1 | . . 1 . . . Part Schematic 2 | . . . 2 . . Robot Analysis 1 | . 1 . . . . Prototype ID Bank 3 | . 3 . . . . Branch Access Points 1 | . . . 1 . . Emergency Access Points 1 | . 1 . . . . Terminal Index 1 | . 1 . . . . Locate Traps 2 | . 2 . . . . Zone Layout 2 | . 2 . . . . Fabricator Hacks . | . . . . . . Repair Station Hacks 2 | . . . 2 . . Scan Component 1 | . . . 1 . . Repair 1 | . . . 1 . . Recycling Unit Hacks . | . . . . . . Scanalyzer 2 | . . . 2 . . Insert Component 1 | . . . 1 . . Analyze 1 | . . . 1 . . Garrison Access Hacks . | . . . . . . Unauthorized Hacks 2 | . 2 . . . . Terminals 2 | . 2 . . . . Track 1 | . 1 . . . . Assimilate 1 | . 1 . . . . Fabricators . | . . . . . . Repair Stations . | . . . . . . Recycling Units . | . . . . . . Scanalyzers . | . . . . . . Garrison Access . | . . . . . . Data Cores Recovered . | . . . . . . Used . | . . . . . . Hacking Detections 13 | . 8 . 5 . . Full Trace Events 5 | . 2 . 3 . . Feedback Events . | . . . . . . Feedback Blocked . | . . . . . . Robot Schematics Acquired . | . . . . . . Robots Built . | . . . . . . Authchips . | . . . . . . Time . | . . . . . . Total Robot Build Rating . | . . . . . . Part Schematics Acquired 3 | . . . 3 . . Parts Built . | . . . . . . Authchips . | . . . . . . Time . | . . . . . . Total Part Build Rating . | . . . . . . Parts Repaired 1 | . . . 1 . . Time 26 | . . . 26 . . Parts Recycled . | . . . . . . Recycled Matter . | . . . . . . Retrieved Matter . | . . . . . . Retrieved Components . | . . . . . . Parts Scanalyzed 1 | . . . 1 . . Part Schematics Acquired 1 | . . . 1 . . Parts Damaged . | . . . . . . Bothacking | -11 -10 -10 -8 -7 -7 ------------ Run | Yrd Mat Sub Mat Fac Was Used RIF Installer . | . . . . . . Robots Hacked . | . . . . . . Non-combat . | . . . . . . Combat . | . . . . . . Robot Hacks Applied . | . . . . . . Relay Couplers Released . | . . . . . . Fabnet Peak Effective % . | . . . . . . Robots Rewired 1 | . . . . 1 . Allies Hacked . | . . . . . . Hacks Repelled . | . . . . . . Allies | -11 -10 -10 -8 -7 -7 -------- Run | Yrd Mat Sub Mat Fac Was Total Allies 2 | . . . . 1 1 Largest Group 2 | . . . . 1 2 Highest-Rated Group 43 | . . . . 12 43 Highest-Rated Ally 31 | . . . . 12 31 Total Orders . | . . . . . . Ally Attacks 13 | . . . . 3 10 Total Damage 161 | . . . . 16 145 Kills 1 | . . . . 1 . Allies Corrupted . | . . . . . . Allies Melted . | . . . . . . Intel | -11 -10 -10 -8 -7 -7 ------- Run | Yrd Mat Sub Mat Fac Was Robot Analysis Total 1 | . 1 . . . . Derelict Logs Recovered 1 | . . 1 . . . Drone Launches . | . . . . . . Drone Recoveries . | . . . . . . Exploration | -11 -10 -10 -8 -7 -7 ------------- Run | Yrd Mat Sub Mat Fac Was Turns Passed 7379 | 73 1227 3332 2086 633 28 Spaces Moved 3233 | 38 425 1843 643 276 8 Core 4 | 4 . . . . . Treads 2320 | 34 425 1604 257 . . Legs . | . . . . . . Wheels 909 | . . 239 386 276 8 Hover . | . . . . . . Flight . | . . . . . . Fastest Speed 50 | 50 160 125 110 157 157 Average Speed 175 | 148 160 156 242 182 157 Slowest Speed 480 | 160 160 480 440 200 157 Overloaded Moves . | . . . . . . Propulsion Burnouts . | . . . . . . Robots Hopped . | . . . . . . Cave-ins Triggered . | . . . . . . Exploration Rate (%) 42 | 3 81 95 49 7 18 Regions Visited 5 Branch Regions 1 Pre-discovered Areas . | . . . . . . Known Exits Taken . | . . . . . . Unknown Exits Taken 4 | 1 1 1 1 . . Scrap Searched 5 | . . 5 . . . Spaces Dug . | . . . . . . Terrain Destroyed 206 | . 1 126 56 . 23 Melee . | . . . . . . Projectile 14 | . . . 14 . . AOE 192 | . 1 126 42 . 23 Terrain Rammed . | . . . . . . Walls Destroyed . | . . . . . . Machines Disabled . | . . . . . . Actions | -11 -10 -10 -8 -7 -7 --------- Run | Yrd Mat Sub Mat Fac Was Total 4503 | 46 904 2172 960 406 15 Wait 762 | . 411 179 95 77 . Move 3229 | 37 424 1842 642 276 8 Hop . | . . . . . . Pick Up 50 | . 4 4 30 12 . Fast Attach 27 | 6 4 6 9 2 . Attach 6 | . 1 2 3 . . Detach 1 | . . . 1 . . Swap 24 | . 4 4 9 5 2 Drop 41 | . 7 9 10 15 . Fire 247 | 3 35 98 100 6 5 Melee 27 | . . . 27 . . Ram . | . . . . . . Kick . | . . . . . . Crush 1 | . 1 . . . . Escape Stasis . | . . . . . . Rewire 7 | . . . . 7 . Trap 1 | . . 1 . . . Miscellaneous 80 | . 13 27 34 6 . Route ------- -11/Scrapyard -10/Materials (discovered 4 exits: [*Mat x2] / [*Min] / *Sub) -10/Subcaves (discovered 3 exits: *Mat x2 / [Rec]) -8/Materials (discovered 3 exits: [*Fac] / *Sto x2) -7/Factory -7/Waste History --------- Turn | Location | Event 3 | -11/Scrapyard | Discovered new exit (range 15) 8 | -11/Scrapyard | Upgraded with Propulsion slot (x1) 8 | -11/Scrapyard | Upgraded with Utility slot (x1) 8 | -11/Scrapyard | Upgraded with Weapon slot (x1) 74 | -11/Scrapyard | Entered Materials 318 | -10/Materials | Build established: Mutant 380 | -10/Materials | Discovered new exit (range 5) 578 | -10/Materials | Discovered new exit (range 9) 618 | -10/Materials | Reached level 2 693 | -10/Materials | Upgraded with Utility slot (x2) 776 | -10/Materials | Discovered new exit (range 15) 776 | -10/Materials | Discovered new exit (range 13) 1301 | -10/Materials | Entered Subcaves 1303 | -10/Subcaves | Reached level 3 1341 | -10/Subcaves | Discovered new exit (range 13) 1362 | -10/Subcaves | Core integrity fell below 50% 1572 | -10/Subcaves | A swath of the cavern ceiling suddenly collapsed 1638 | -10/Subcaves | Discovered new exit (range 16) 1659 | -10/Subcaves | Shifting Twisted Machinery released Scrap Shield 1663 | -10/Subcaves | Shifting Twisted Machinery released Sub. Laser 1666 | -10/Subcaves | Discovered new exit (range 6) 1779 | -10/Subcaves | Learned Materials emergency access door positions 1805 | -10/Subcaves | A Subdweller sparked back to life 1805 | -10/Subcaves | A Subdweller sparked back to life 1805 | -10/Subcaves | A Subdweller sparked back to life 1824 | -10/Subcaves | Found Prototype Power Core 1824 | -10/Subcaves | Identified Meta Core 1825 | -10/Subcaves | Attached Meta Core, gained temporary slots: Propulsion, Utility, Weapon 2102 | -10/Subcaves | Build established: Gunner 2246 | -10/Subcaves | Shifting Twisted Machinery released Riot Gun 2247 | -10/Subcaves | Shifting Twisted Machinery released Barrage Gun 2591 | -10/Subcaves | A swath of the cavern ceiling suddenly collapsed 3604 | -10/Subcaves | Shifting Twisted Machinery released Battle Cannon 3607 | -10/Subcaves | Shifting Twisted Machinery released Sub. Beam Cannon 3643 | -10/Subcaves | Ambushed by Subdweller buried in earth 3647 | -10/Subcaves | Ambushed by Subdweller buried in earth 3827 | -10/Subcaves | Ambushed by Subdwellers from Twisted Machinery 4039 | -10/Subcaves | Visited Clippyterm 4576 | -10/Subcaves | Build established: Mutant 4633 | -10/Subcaves | Entered Materials 4634 | -8/Materials | Core integrity fell below 50% 4635 | -8/Materials | Reached level 4 4640 | -8/Materials | Upgraded with Utility slot (x1) 4692 | -8/Materials | Core integrity fell below 20% 4747 | -8/Materials | Discovered new exit (range 6) 4774 | -8/Materials | Upgraded with Power slot (x1) 4966 | -8/Materials | Reached level 5 5108 | -8/Materials | Repaired Tractor Beam 5218 | -8/Materials | Upgraded with Propulsion slot (x1) 5514 | -8/Materials | Build established: Hauler-Gunner 5606 | -8/Materials | Discovered new exit (range 6) 5949 | -8/Materials | Reached level 6 5952 | -8/Materials | Upgraded with Utility slot (x1) 6585 | -8/Materials | Reached level 7 6660 | -8/Materials | Identified exit to Storage 6719 | -8/Materials | Entered Factory 6720 | -7/Factory | Core integrity fell below 50% 6720 | -7/Factory | Core integrity fell below 20% 6721 | -7/Factory | Reached level 8 6727 | -7/Factory | Upgraded with Utility slot (x1) 6727 | -7/Factory | Upgraded with Weapon slot (x1) 7352 | -7/Factory | Sucked down chute 7352 | -7/Factory | Entered Waste 7353 | -7/Waste | Met a frightened Derelict 7360 | -7/Waste | 1 allies followed down the chute 7366 | -7/Waste | Spotted C-40 Crusher 7367 | -7/Waste | EMP discharged 7367 | -7/Waste | System corruption reached 10% 7368 | -7/Waste | Spotted C-40 Crusher 7376 | -7/Waste | Crushed by Compactor (1 part destroyed, 1 dropped) 7379 | -7/Waste | Crushed by Compactor (1 part destroyed, 1 dropped) 7380 | -7/Waste | Destroyed C-40 Crusher 7380 | -7/Waste | Destroyed self with Improved Grenade Launcher Last Messages --------------- GOAL=ESCAPE 07353_ X9-VHK(g): "Oh no, you too?! We need to get out of this place, preferably unseen. I've heard terrible stories about what compactors can do if you allow them to get too close... Maybe together we can make it." 07357_ ALERT: Foreign system detected. Charging EMP. 07360_ Virus 4b slides out of a hatch. 07367_ System corrupted (+8). 07373_ System corrupted: Matter fused (-5). 07373_ X9-VHK(g) Lgt. Angular Momentum Engine crushed. 07373_ X9-VHK(g) Unknown Leg crushed. 07373_ X9-VHK(g) destroyed. 07376_ Wheel crushed. 07376_ Arm. Wheel crushed. 07379_ Hvy. Deuterium Engine crushed. 07379_ Reflective Plating crushed. 07380_ C-40 Crusher destroyed. Map ----- +----------------------------------------------------+ | ?????????????????????????????????????????????????? | | ?????????????????????????????????????????????????? | | ?????????????????????????????????????????????????? | | ?????????????????????????????????????????????????? | | ?????????????????????????????????????????????????? | | ?????????????????????????????????????????????????? | | ?????????????????????????????????????????????????? | | ?????????????????????????????????????????????????? | | ?????????????????????????????????????????????????? | | ??????????????????????????? ?????????????????????? | | ????????????????????##???#? ???????????????????? | | ???????????????#???#???##?? #?????????????????? | | ???????#?????#??#?#?????##? ##????????????????? | | ?????????#?????##??##?#??## #?##??????????????? | | ??????#???????#????##???#? #??#??????????????? | | ???????????#??????#???##?? #?????????????????? | | ????????#????#?#??#?##??? #????#????????????? | | ??????#??????#???##?????? ##????????????????? | | ??????????###???#??#??#??? ##?????? ?????????? | | ??#????????############### ####??#??????????? | | ????????#?#?# # ##???#???????????? | | ????????????# CC ##????? ????????? | | ????????????# CC ####### ????????? | | ?????????#??# s % ???????? | | ???????#????# = ???????? | | ????????????# @ ???????? | | ???????#????# ! ???????? | | ???#????????# ! ######## ????????? | | ?????#?????## ## # #?#?#?????????????? | | ????????#?### #### #??????#??????????? | | ??????????################?? #??????? ?????????? | | ?????????????????????#?#??# #?#????#??????????? | | ???????????#?????#??#??#????? ??????#??????????? | | ???????????????#????#??## ??? ?#??????????????? | | ????????#?????#??#???#??# ???? ###?????????????? | | ?????????##????#?#?#??###????? #?#?#???????????? | | ??????????????#?????#???#? ?? #???????????????? | | ????????????????????##????? ??? #?#?????????????? | | ????????????????#?#???#?# ????? #???????????????? | | ???????????????????##????????????????????????????? | | ????????????????????#?#?????#????????????????????? | | ?????????????????????????????????????????????????? | | ?????????????????????????????????????????????????? | | ?????????????????????????????????????????????????? | | ?????????????????????????????????????????????????? | | ?????????????????????????????????????????????????? | | ?????????????????????????????????????????????????? | | ?????????????????????????????????????????????????? | | ?????????????????????????????????????????????????? | | ?????????????????????????????????????????????????? | +----------------------------------------------------+ Best States ------------- Heat Dissipation 58 Energy Generation 30 Energy Capacity 390 Matter Stores 300 Matter Capacity 300 Sight Range 17 Terrain Scan Range 16 Terrain Scan Density 110 Armor Coverage 800 Resistance: TH 10 Utility Shielding 66 Evasion (%) 40 Targeting Accuracy 6 Recoil Reduction 3 Item Schematics ----------------- Multitool | -8/Materials | Scanalyzed Arm. Wheel | -8/Materials | Hacked Wheel | -8/Materials | Hacked Robot Schematics ------------------ None Fabricated ------------ Nothing Alien Tech Used ----------------- None Achievements -------------- None Challenges ------------ None RPGLIKE | -11 -10 -10 -8 -7 -7 --------- Run | Yrd Mat Sub Mat Fac Was Levels Raised 7 | . 1 1 4 1 . XP Earned 14205 | 3000 2010 1700 5595 1700 200 XP Spent 13260 | 2250 2205 750 5255 2800 . Upgrades 29 | 5 8 1 13 2 . Power Slot 1 | . . . 1 . . Propulsion Slot 2 | 1 . . 1 . . Utility Slot 6 | 1 2 . 2 1 . Weapon Slot 2 | 1 . . . 1 . Core Integrity 12 | . 3 . 9 . . Heat Dissipation 1 | . 1 . . . . Inventory Capacity 3 | 2 . 1 . . . Sight Range 1 | . 1 . . . . Terrain Scan Density 1 | . 1 . . . . Protomatter Created 850 | . 143 211 368 41 87 Integrity Restored 1545 | . 255 438 729 123 . Core 1513 | . 223 438 729 123 . Parts 32 | . 32 . . . . Protomatter Decayed 134 | . 17 56 61 . . Game ------ Seed GravmagLauncherMonowheel Manual? 0 Play Time 00:53:31 Cumulative 560.9 hours Start 2024.02.26 @ 05:34:55 End 2024.02.26 @ 06:39:03 Sessions 1 Manual Loads 0 Difficulty Rogue Special Mode Winter2019/RPGLIKE Game No. 218 Rogue 197 Adventurer 3 Explorer 18 Win Type - Total 13 Types 8/2/1/1/0/1/0/0/0 Lore% 85 Gallery% 94 Achievement% 82 Wizard Run 0 Options --------- Layout 2 ASCII 0 Keyboard 0 Movement Numpad Keybinds 0 Fullscreen 2 Font 24/Smallcaps Map View 50x44 Zoom Use 0% Tactical HUD 1 Map Filters NONE Filters NONE Steam X RUN: 9f6882b2-131b-4165-9130-dd3a6c74a3df